[Event "December 19 Early 2023"]
[Site "https://www.chess.com"]
[Date "2023.12.19"]
[Round "7"]
[White "Sailer, Mike"]
[Black "Rakhimgaliyev, Yerlan"]
[Result "0-1"]
[Board "130"]
[TimeControl "180+1"]
[WhiteFideId "2012901"]
[BlackFideId "13705148"]
[WhiteElo "2109"]
[BlackElo "2261"]
[WhiteTeam "USA"]
[BlackTeam "KAZ"]
[WhiteClock "0:00:00"]
[BlackClock "0:02:07"]

1. d4 {[%clk 0:02:59]}  Nf6 {[%clk 0:03:00]} 2. Nc3 {[%clk 0:02:58]}  d5 {[%clk 0:02:59]} 3. Bf4 {[%clk 0:02:57]}  g6 {[%clk 0:02:58]} 4. e3 {[%clk 0:02:51]}  Bg7 {[%clk 0:02:58]} 5. h4 {[%clk 0:02:46]}  c5 {[%clk 0:02:54]} 6. Be2 {[%clk 0:02:43]}  Nc6 {[%clk 0:02:54]} 7. Qd2 {[%clk 0:02:33]}  Bf5 {[%clk 0:02:45]} 8. Nf3 {[%clk 0:02:20]}  O-O {[%clk 0:02:39]} 9. O-O-O {[%clk 0:02:16]}  Rc8 {[%clk 0:02:35]} 10. Ne5 {[%clk 0:02:13]}  cxd4 {[%clk 0:02:32]} 11. exd4 {[%clk 0:02:00]}  Qa5 {[%clk 0:02:24]} 12. g4 {[%clk 0:01:50]}  Nb4 {[%clk 0:02:15]} 13. a4 {[%clk 0:00:26]}  Bxc2 {[%clk 0:02:12]} 14. Bb5 {[%clk 0:00:07]}  Ne4 {[%clk 0:02:08]} 15. Nxe4 {[%clk 0:00:00]}  Bxe4+ {[%clk 0:02:07]} 0-1

[Event "December 19 Early 2023"]
[Site "https://www.chess.com"]
[Date "2023.12.19"]
[Round "7"]
[White "Yushko, Olga"]
[Black "Yuan, Qingyu"]
[Result "0-1"]
[Board "131"]
[TimeControl "180+1"]
[WhiteFideId "14114500"]
[BlackFideId "8609772"]
[WhiteElo "1891"]
[BlackElo "2359"]
[WhiteTeam "UKR"]
[BlackTeam "CHN"]
[WhiteClock "0:00:04"]
[BlackClock "0:00:05"]

1. d4 {[%clk 0:02:59]}  g6 {[%clk 0:03:00]} 2. c4 {[%clk 0:03:00]}  Bg7 {[%clk 0:03:00]} 3. Nf3 {[%clk 0:03:00]}  d6 {[%clk 0:02:58]} 4. Bg5 {[%clk 0:03:00]}  c5 {[%clk 0:02:55]} 5. e3 {[%clk 0:02:58]}  Bg4 {[%clk 0:02:51]} 6. Be2 {[%clk 0:02:57]}  cxd4 {[%clk 0:02:35]} 7. exd4 {[%clk 0:02:56]}  Nf6 {[%clk 0:02:30]} 8. O-O {[%clk 0:02:51]}  h6 {[%clk 0:02:28]} 9. Bh4 {[%clk 0:02:51]}  O-O {[%clk 0:02:28]} 10. Nc3 {[%clk 0:02:51]}  Nc6 {[%clk 0:02:28]} 11. h3 {[%clk 0:02:50]}  Bd7 {[%clk 0:02:26]} 12. Re1 {[%clk 0:02:47]}  Rc8 {[%clk 0:02:26]} 13. a3 {[%clk 0:02:42]}  Na5 {[%clk 0:02:18]} 14. Nd2 {[%clk 0:02:21]}  Nc6 {[%clk 0:02:08]} 15. Nf3 {[%clk 0:02:17]}  a6 {[%clk 0:02:05]} 16. Rc1 {[%clk 0:02:16]}  Na5 {[%clk 0:02:04]} 17. Nd2 {[%clk 0:02:00]}  Nc6 {[%clk 0:01:51]} 18. Nf3 {[%clk 0:02:00]}  Re8 {[%clk 0:01:52]} 19. b4 {[%clk 0:01:58]}  g5 {[%clk 0:01:46]} 20. Bg3 {[%clk 0:01:58]}  Nh5 {[%clk 0:01:46]} 21. Bh2 {[%clk 0:01:52]}  e5 {[%clk 0:01:39]} 22. dxe5 {[%clk 0:01:48]}  dxe5 {[%clk 0:01:38]} 23. Nxe5 {[%clk 0:01:37]}  Nxe5 {[%clk 0:01:37]} 24. Bxe5 {[%clk 0:01:33]}  Rxe5 {[%clk 0:01:26]} 25. Bxh5 {[%clk 0:01:33]}  Rxe1+ {[%clk 0:01:21]} 26. Qxe1 {[%clk 0:01:34]}  Rxc4 {[%clk 0:01:21]} 27. Nd5 {[%clk 0:01:34]}  Rxc1 {[%clk 0:01:15]} 28. Qxc1 {[%clk 0:01:35]}  Bc6 {[%clk 0:01:15]} 29. Ne3 {[%clk 0:01:32]}  Qd3 {[%clk 0:01:15]} 30. Qd1 {[%clk 0:01:22]}  Qxa3 {[%clk 0:00:45]} 31. Qd8+ {[%clk 0:01:16]}  Bf8 {[%clk 0:00:45]} 32. Qf6 {[%clk 0:01:09]}  Be8 {[%clk 0:00:30]} 33. Nf5 {[%clk 0:01:05]}  Qc1+ {[%clk 0:00:26]} 34. Kh2 {[%clk 0:01:04]}  Qc6 {[%clk 0:00:20]} 35. Qe5 {[%clk 0:00:45]}  Bd7 {[%clk 0:00:19]} 36. Bf3 {[%clk 0:00:36]}  Qe6 {[%clk 0:00:15]} 37. Qxe6 {[%clk 0:00:32]}  fxe6 {[%clk 0:00:15]} 38. Nd4 {[%clk 0:00:29]}  b6 {[%clk 0:00:09]} 39. Bb7 {[%clk 0:00:27]}  Bxb4 {[%clk 0:00:07]} 40. Bxa6 {[%clk 0:00:28]}  Bc5 {[%clk 0:00:08]} 41. Nf3 {[%clk 0:00:25]}  Bxf2 {[%clk 0:00:08]} 42. Ne5 {[%clk 0:00:25]}  Be8 {[%clk 0:00:04]} 43. Bc4 {[%clk 0:00:25]}  Bf7 {[%clk 0:00:02]} 44. Nc6 {[%clk 0:00:19]}  Bc5 {[%clk 0:00:02]} 45. Nd8 {[%clk 0:00:18]}  Kg7 {[%clk 0:00:02]} 46. Nxe6+ {[%clk 0:00:18]}  Kf6 {[%clk 0:00:02]} 47. Nxc5 {[%clk 0:00:17]}  bxc5 {[%clk 0:00:03]} 48. Bd3 {[%clk 0:00:15]}  Bb3 {[%clk 0:00:04]} 49. Kg3 {[%clk 0:00:13]}  c4 {[%clk 0:00:04]} 50. Be4 {[%clk 0:00:13]}  c3 {[%clk 0:00:04]} 51. Kg4 {[%clk 0:00:13]}  c2 {[%clk 0:00:04]} 52. Bxc2 {[%clk 0:00:13]}  Bxc2 {[%clk 0:00:05]} 53. Kh5 {[%clk 0:00:10]}  Kg7 {[%clk 0:00:05]} 54. h4 {[%clk 0:00:11]}  Bg6+ {[%clk 0:00:03]} 55. Kg4 {[%clk 0:00:11]}  Kf6 {[%clk 0:00:03]} 56. hxg5+ {[%clk 0:00:07]}  hxg5 {[%clk 0:00:04]} 57. Kg3 {[%clk 0:00:07]}  Kf5 {[%clk 0:00:04]} 58. Kf3 {[%clk 0:00:07]}  Bh5+ {[%clk 0:00:04]} 59. Kg3 {[%clk 0:00:07]}  Bd1 {[%clk 0:00:04]} 60. Kh3 {[%clk 0:00:06]}  Kf4 {[%clk 0:00:05]} 61. g3+ {[%clk 0:00:07]}  Kf3 {[%clk 0:00:05]} 62. Kh2 {[%clk 0:00:07]}  g4 {[%clk 0:00:05]} 63. Kg1 {[%clk 0:00:07]}  Kxg3 {[%clk 0:00:05]} 64. Kf1 {[%clk 0:00:04]}  Kh2 {[%clk 0:00:05]} 0-1

[Event "December 19 Early 2023"]
[Site "https://www.chess.com"]
[Date "2023.12.19"]
[Round "7"]
[White "Novoselov, Roman"]
[Black "Khodabandeh, Milad"]
[Result "0-1"]
[Board "134"]
[TimeControl "180+1"]
[WhiteFideId "4135067"]
[BlackFideId "12538620"]
[WhiteElo "2250"]
[BlackElo "1846"]
[WhiteTeam "RUS"]
[BlackTeam "IRI"]
[WhiteClock "0:00:00"]
[BlackClock "0:00:03"]

1. d4 {[%clk 0:02:55]}  d5 {[%clk 0:02:59]} 2. Nf3 {[%clk 0:02:54]}  Nf6 {[%clk 0:02:59]} 3. Bf4 {[%clk 0:02:54]}  c5 {[%clk 0:02:59]} 4. e3 {[%clk 0:02:51]}  Nc6 {[%clk 0:02:59]} 5. Nbd2 {[%clk 0:02:50]}  e6 {[%clk 0:02:58]} 6. c3 {[%clk 0:02:50]}  Bd6 {[%clk 0:02:56]} 7. Ne5 {[%clk 0:02:49]}  cxd4 {[%clk 0:02:44]} 8. exd4 {[%clk 0:02:44]}  Bxe5 {[%clk 0:02:42]} 9. dxe5 {[%clk 0:02:44]}  Nd7 {[%clk 0:02:41]} 10. Qg4 {[%clk 0:02:43]}  g6 {[%clk 0:02:28]} 11. Nf3 {[%clk 0:02:42]}  h5 {[%clk 0:02:24]} 12. Qg3 {[%clk 0:02:41]}  Qa5 {[%clk 0:02:14]} 13. Bd3 {[%clk 0:02:32]}  d4 {[%clk 0:01:55]} 14. O-O {[%clk 0:02:30]}  dxc3 {[%clk 0:01:54]} 15. bxc3 {[%clk 0:02:28]}  h4 {[%clk 0:01:34]} 16. Qg4 {[%clk 0:02:04]}  Ndxe5 {[%clk 0:01:24]} 17. Nxe5 {[%clk 0:01:43]}  Nxe5 {[%clk 0:01:25]} 18. Qg5 {[%clk 0:01:11]}  Rh5 {[%clk 0:01:23]} 19. Qf6 {[%clk 0:01:08]}  Nxd3 {[%clk 0:01:18]} 20. Rad1 {[%clk 0:00:43]}  Qf5 {[%clk 0:01:05]} 21. Qg7 {[%clk 0:00:35]}  Ke7 {[%clk 0:00:21]} 22. Qg8 {[%clk 0:00:15]}  b6 {[%clk 0:00:20]} 23. Bd6+ {[%clk 0:00:13]}  Kd7 {[%clk 0:00:15]} 24. Qf8 {[%clk 0:00:13]}  Kc6 {[%clk 0:00:10]} 25. Qe8+ {[%clk 0:00:11]}  Kb7 {[%clk 0:00:09]} 26. Qe7+ {[%clk 0:00:09]}  Ka6 {[%clk 0:00:10]} 27. Qc7 {[%clk 0:00:06]}  Bb7 {[%clk 0:00:08]} 28. a4 {[%clk 0:00:05]}  Nc5 {[%clk 0:00:07]} 29. Rb1 {[%clk 0:00:04]}  Qd5 {[%clk 0:00:06]} 30. f3 {[%clk 0:00:02]}  Qc6 {[%clk 0:00:06]} 31. Qe7 {[%clk 0:00:02]}  Rc8 {[%clk 0:00:06]} 32. Kh1 {[%clk 0:00:02]}  Rd5 {[%clk 0:00:05]} 33. Rb5 {[%clk 0:00:02]}  Qxd6 {[%clk 0:00:04]} 34. Qxf7 {[%clk 0:00:02]}  h3 {[%clk 0:00:04]} 35. Qxg6 {[%clk 0:00:01]}  hxg2+ {[%clk 0:00:04]} 36. Kxg2 {[%clk 0:00:02]}  Rd2+ {[%clk 0:00:04]} 37. Kg1 {[%clk 0:00:00]}  Qd3 {[%clk 0:00:03]} 0-1

[Event "December 19 Early 2023"]
[Site "https://www.chess.com"]
[Date "2023.12.19"]
[Round "7"]
[White "Santos, Rafael Ventura Dos"]
[Black "TitarovVasiliYouTube"]
[Result "1-0"]
[Board "135"]
[TimeControl "180+1"]
[WhiteFideId "2122227"]
[WhiteElo "2138"]
[BlackElo "2564"]
[WhiteTeam "BRA"]
[WhiteClock "0:00:44"]
[BlackClock "0:00:00"]

1. e4 {[%clk 0:02:59]}  c5 {[%clk 0:03:00]} 2. c4 {[%clk 0:02:58]}  Nc6 {[%clk 0:02:56]} 3. Ne2 {[%clk 0:02:58]}  Nf6 {[%clk 0:02:55]} 4. Nbc3 {[%clk 0:02:57]}  e6 {[%clk 0:02:53]} 5. g3 {[%clk 0:02:55]}  Be7 {[%clk 0:02:47]} 6. Bg2 {[%clk 0:02:55]}  O-O {[%clk 0:02:47]} 7. O-O {[%clk 0:02:55]}  Qb6 {[%clk 0:02:39]} 8. b3 {[%clk 0:02:52]}  d6 {[%clk 0:02:36]} 9. h3 {[%clk 0:02:48]}  a6 {[%clk 0:02:30]} 10. d3 {[%clk 0:02:48]}  Bd7 {[%clk 0:02:07]} 11. f4 {[%clk 0:02:42]}  Qc7 {[%clk 0:02:02]} 12. g4 {[%clk 0:02:37]}  Nd4 {[%clk 0:01:21]} 13. Be3 {[%clk 0:02:14]}  Nxe2+ {[%clk 0:01:11]} 14. Qxe2 {[%clk 0:02:13]}  Bc6 {[%clk 0:00:52]} 15. g5 {[%clk 0:02:04]}  Nd7 {[%clk 0:00:52]} 16. Qg4 {[%clk 0:01:52]}  Rfe8 {[%clk 0:00:47]} 17. f5 {[%clk 0:01:50]}  Ne5 {[%clk 0:00:47]} 18. Qh5 {[%clk 0:01:45]}  exf5 {[%clk 0:00:45]} 19. exf5 {[%clk 0:01:40]}  Bxg2 {[%clk 0:00:45]} 20. Kxg2 {[%clk 0:01:40]}  Bf8 {[%clk 0:00:23]} 21. Nd5 {[%clk 0:01:37]}  Qd8 {[%clk 0:00:21]} 22. Rad1 {[%clk 0:01:31]}  b5 {[%clk 0:00:19]} 23. Bc1 {[%clk 0:01:24]}  Qd7 {[%clk 0:00:13]} 24. f6 {[%clk 0:01:12]}  g6 {[%clk 0:00:11]} 25. Qh4 {[%clk 0:01:12]}  Nc6 {[%clk 0:00:07]} 26. Rf2 {[%clk 0:01:11]}  Re5 {[%clk 0:00:07]} 27. Bf4 {[%clk 0:01:09]}  Rxd5 {[%clk 0:00:05]} 28. cxd5 {[%clk 0:01:09]}  Nb4 {[%clk 0:00:04]} 29. Qg3 {[%clk 0:01:06]}  Nxd5 {[%clk 0:00:04]} 30. Bc1 {[%clk 0:01:04]}  Re8 {[%clk 0:00:02]} 31. Qf3 {[%clk 0:00:59]}  Nb4 {[%clk 0:00:02]} 32. Re2 {[%clk 0:00:56]}  Rxe2+ {[%clk 0:00:03]} 33. Qxe2 {[%clk 0:00:56]}  Qf5 {[%clk 0:00:03]} 34. a3 {[%clk 0:00:50]}  Nd5 {[%clk 0:00:04]} 35. Qf3 {[%clk 0:00:50]}  Qe6 {[%clk 0:00:03]} 36. Qe4 {[%clk 0:00:49]}  Nc7 {[%clk 0:00:01]} 37. Qxe6 {[%clk 0:00:48]}  Nxe6 {[%clk 0:00:02]} 38. Be3 {[%clk 0:00:47]}  d5 {[%clk 0:00:02]} 39. h4 {[%clk 0:00:45]}  d4 {[%clk 0:00:02]} 40. Bc1 {[%clk 0:00:46]}  h6 {[%clk 0:00:02]} 41. Re1 {[%clk 0:00:45]}  hxg5 {[%clk 0:00:01]} 42. hxg5 {[%clk 0:00:46]}  Bd6 {[%clk 0:00:00]} 43. Kf3 {[%clk 0:00:44]} 1-0

[Event "December 19 Early 2023"]
[Site "https://www.chess.com"]
[Date "2023.12.19"]
[Round "7"]
[White "Boor, Carl"]
[Black "Zhuk, Valeriy"]
[Result "1-0"]
[Board "136"]
[TimeControl "180+1"]
[WhiteFideId "2017008"]
[BlackFideId "24151254"]
[WhiteElo "2330"]
[BlackElo "2148"]
[WhiteTeam "USA"]
[BlackTeam "RUS"]
[WhiteClock "0:00:05"]
[BlackClock "0:00:00"]

1. d4 {[%clk 0:02:43]}  Nf6 {[%clk 0:02:58]} 2. c4 {[%clk 0:02:42]}  e6 {[%clk 0:02:59]} 3. Nc3 {[%clk 0:02:42]}  Bb4 {[%clk 0:02:58]} 4. e3 {[%clk 0:02:42]}  O-O {[%clk 0:02:53]} 5. a3 {[%clk 0:02:42]}  Bxc3+ {[%clk 0:02:53]} 6. bxc3 {[%clk 0:02:43]}  d5 {[%clk 0:02:53]} 7. cxd5 {[%clk 0:02:42]}  exd5 {[%clk 0:02:53]} 8. Bd3 {[%clk 0:02:42]}  c5 {[%clk 0:02:40]} 9. Ne2 {[%clk 0:02:41]}  c4 {[%clk 0:02:34]} 10. Bc2 {[%clk 0:02:41]}  Bg4 {[%clk 0:02:32]} 11. f3 {[%clk 0:02:41]}  Bh5 {[%clk 0:02:31]} 12. Nf4 {[%clk 0:02:41]}  Bg6 {[%clk 0:02:29]} 13. Nxg6 {[%clk 0:02:40]}  hxg6 {[%clk 0:02:30]} 14. O-O {[%clk 0:02:39]}  Re8 {[%clk 0:02:30]} 15. Qe1 {[%clk 0:02:32]}  Nc6 {[%clk 0:02:23]} 16. Qf2 {[%clk 0:02:24]}  Qd7 {[%clk 0:02:18]} 17. Rb1 {[%clk 0:02:16]}  Rab8 {[%clk 0:02:13]} 18. Re1 {[%clk 0:02:05]}  b5 {[%clk 0:02:11]} 19. e4 {[%clk 0:02:04]}  dxe4 {[%clk 0:02:05]} 20. fxe4 {[%clk 0:02:03]}  a5 {[%clk 0:01:53]} 21. Bf4 {[%clk 0:01:42]}  Rb7 {[%clk 0:01:46]} 22. h3 {[%clk 0:01:21]}  Qe7 {[%clk 0:00:54]} 23. e5 {[%clk 0:00:39]}  Nd5 {[%clk 0:00:52]} 24. Be4 {[%clk 0:00:36]}  Qe6 {[%clk 0:00:50]} 25. Qf3 {[%clk 0:00:30]}  Rd8 {[%clk 0:00:51]} 26. Bg5 {[%clk 0:00:29]}  Rdd7 {[%clk 0:00:51]} 27. Bxd5 {[%clk 0:00:18]}  Rxd5 {[%clk 0:00:50]} 28. Be3 {[%clk 0:00:13]}  b4 {[%clk 0:00:49]} 29. axb4 {[%clk 0:00:13]}  axb4 {[%clk 0:00:49]} 30. cxb4 {[%clk 0:00:14]}  Rxb4 {[%clk 0:00:46]} 31. Rxb4 {[%clk 0:00:14]}  Nxb4 {[%clk 0:00:47]} 32. Ra1 {[%clk 0:00:14]}  Rd8 {[%clk 0:00:29]} 33. Bg5 {[%clk 0:00:14]}  Rc8 {[%clk 0:00:28]} 34. Ra8 {[%clk 0:00:14]}  Rxa8 {[%clk 0:00:24]} 35. Qxa8+ {[%clk 0:00:14]}  Kh7 {[%clk 0:00:25]} 36. Qa4 {[%clk 0:00:13]}  Qb6 {[%clk 0:00:24]} 37. Be3 {[%clk 0:00:12]}  Nd5 {[%clk 0:00:24]} 38. Bf2 {[%clk 0:00:12]}  Qb3 {[%clk 0:00:24]} 39. Qc6 {[%clk 0:00:11]}  Nf4 {[%clk 0:00:19]} 40. Qe4 {[%clk 0:00:11]}  Nd3 {[%clk 0:00:12]} 41. Be3 {[%clk 0:00:10]}  Qd1+ {[%clk 0:00:08]} 42. Kh2 {[%clk 0:00:10]}  c3 {[%clk 0:00:07]} 43. d5 {[%clk 0:00:10]}  c2 {[%clk 0:00:07]} 44. d6 {[%clk 0:00:10]}  c1=Q {[%clk 0:00:07]} 45. Bxc1 {[%clk 0:00:10]}  Nxc1 {[%clk 0:00:08]} 46. Qh4+ {[%clk 0:00:09]}  Kg8 {[%clk 0:00:08]} 47. Qd8+ {[%clk 0:00:09]}  Kh7 {[%clk 0:00:08]} 48. d7 {[%clk 0:00:08]}  g5 {[%clk 0:00:00]} 49. Qe7 {[%clk 0:00:05]} 1-0

[Event "December 19 Early 2023"]
[Site "https://www.chess.com"]
[Date "2023.12.19"]
[Round "7"]
[White "Baches Garcia, Guillermo"]
[Black "Vigoa Apecheche, Yanira"]
[Result "1-0"]
[Board "137"]
[TimeControl "180+1"]
[WhiteFideId "2209764"]
[BlackFideId "3507041"]
[WhiteElo "2504"]
[BlackElo "2276"]
[WhiteTeam "ESP"]
[BlackTeam "USA"]
[WhiteClock "0:00:20"]
[BlackClock "0:00:21"]

1. Nf3 {[%clk 0:03:00]}  c5 {[%clk 0:02:59]} 2. e4 {[%clk 0:03:00]}  Nc6 {[%clk 0:02:58]} 3. d4 {[%clk 0:03:00]}  cxd4 {[%clk 0:02:59]} 4. Nxd4 {[%clk 0:03:01]}  Nf6 {[%clk 0:02:59]} 5. Nc3 {[%clk 0:03:01]}  e5 {[%clk 0:02:57]} 6. Ndb5 {[%clk 0:03:01]}  d6 {[%clk 0:02:56]} 7. Nd5 {[%clk 0:03:01]}  Nxd5 {[%clk 0:02:55]} 8. exd5 {[%clk 0:03:02]}  Nb8 {[%clk 0:02:55]} 9. a4 {[%clk 0:03:02]}  Be7 {[%clk 0:02:53]} 10. Be2 {[%clk 0:03:02]}  O-O {[%clk 0:02:50]} 11. Bd2 {[%clk 0:03:02]}  a6 {[%clk 0:02:50]} 12. Na3 {[%clk 0:03:02]}  Nd7 {[%clk 0:02:34]} 13. a5 {[%clk 0:03:02]}  f5 {[%clk 0:02:30]} 14. Nc4 {[%clk 0:03:01]}  Nc5 {[%clk 0:02:13]} 15. Bb4 {[%clk 0:02:56]}  Kh8 {[%clk 0:02:02]} 16. Bxc5 {[%clk 0:02:24]}  dxc5 {[%clk 0:01:57]} 17. d6 {[%clk 0:02:24]}  Bf6 {[%clk 0:01:45]} 18. Nb6 {[%clk 0:02:24]}  Be6 {[%clk 0:01:36]} 19. Nxa8 {[%clk 0:02:15]}  Qxa8 {[%clk 0:01:37]} 20. O-O {[%clk 0:02:07]}  Rd8 {[%clk 0:01:34]} 21. Qd2 {[%clk 0:01:59]}  Qb8 {[%clk 0:01:31]} 22. Rfd1 {[%clk 0:01:58]}  e4 {[%clk 0:01:30]} 23. c3 {[%clk 0:01:47]}  Be5 {[%clk 0:01:24]} 24. g3 {[%clk 0:01:39]}  h6 {[%clk 0:01:13]} 25. Qe3 {[%clk 0:01:33]}  Qc8 {[%clk 0:00:52]} 26. Rd2 {[%clk 0:01:29]}  Rxd6 {[%clk 0:00:46]} 27. Rad1 {[%clk 0:01:24]}  Rxd2 {[%clk 0:00:41]} 28. Qxd2 {[%clk 0:01:24]}  Qc6 {[%clk 0:00:38]} 29. Bh5 {[%clk 0:01:10]}  Kh7 {[%clk 0:00:34]} 30. Qd8 {[%clk 0:01:05]}  Bf6 {[%clk 0:00:30]} 31. Qd6 {[%clk 0:00:56]}  Qxd6 {[%clk 0:00:28]} 32. Rxd6 {[%clk 0:00:57]}  Bc4 {[%clk 0:00:24]} 33. Rb6 {[%clk 0:00:44]}  Bd5 {[%clk 0:00:23]} 34. Rd6 {[%clk 0:00:36]}  Bc6 {[%clk 0:00:21]} 35. Be2 {[%clk 0:00:33]}  Be5 {[%clk 0:00:21]} 36. Re6 {[%clk 0:00:32]}  Bc7 {[%clk 0:00:20]} 37. Bxa6 {[%clk 0:00:30]}  Bxa5 {[%clk 0:00:20]} 38. Bc4 {[%clk 0:00:26]}  Bd8 {[%clk 0:00:18]} 39. Rd6 {[%clk 0:00:25]}  Be7 {[%clk 0:00:18]} 40. Rd2 {[%clk 0:00:25]}  Bf6 {[%clk 0:00:18]} 41. h4 {[%clk 0:00:24]}  b5 {[%clk 0:00:18]} 42. Bd5 {[%clk 0:00:24]}  Be8 {[%clk 0:00:17]} 43. Be6 {[%clk 0:00:23]}  Bg6 {[%clk 0:00:16]} 44. h5 {[%clk 0:00:23]}  Bxh5 {[%clk 0:00:16]} 45. Bxf5+ {[%clk 0:00:24]}  Bg6 {[%clk 0:00:17]} 46. Bxg6+ {[%clk 0:00:24]}  Kxg6 {[%clk 0:00:18]} 47. Rd5 {[%clk 0:00:24]}  b4 {[%clk 0:00:18]} 48. Rxc5 {[%clk 0:00:24]}  bxc3 {[%clk 0:00:19]} 49. bxc3 {[%clk 0:00:24]}  Kf7 {[%clk 0:00:19]} 50. Kf1 {[%clk 0:00:24]}  Ke6 {[%clk 0:00:19]} 51. Ke2 {[%clk 0:00:24]}  Kd6 {[%clk 0:00:19]} 52. Rc4 {[%clk 0:00:24]}  Kd5 {[%clk 0:00:20]} 53. Rc8 {[%clk 0:00:24]}  Bg5 {[%clk 0:00:19]} 54. Rc7 {[%clk 0:00:23]}  Bf6 {[%clk 0:00:18]} 55. Ra7 {[%clk 0:00:19]}  Kd6 {[%clk 0:00:19]} 56. Ra4 {[%clk 0:00:19]}  Bxc3 {[%clk 0:00:18]} 57. Rxe4 {[%clk 0:00:18]}  Bf6 {[%clk 0:00:18]} 58. Kf3 {[%clk 0:00:18]}  Kd5 {[%clk 0:00:19]} 59. Re2 {[%clk 0:00:18]}  Kd6 {[%clk 0:00:20]} 60. Kg4 {[%clk 0:00:19]}  Kd5 {[%clk 0:00:20]} 61. Kf5 {[%clk 0:00:19]}  Kd6 {[%clk 0:00:20]} 62. Re6+ {[%clk 0:00:19]}  Kd5 {[%clk 0:00:20]} 63. Rxf6 {[%clk 0:00:19]}  gxf6 {[%clk 0:00:21]} 64. Kxf6 {[%clk 0:00:20]}  Ke4 {[%clk 0:00:21]} 65. Kg6 {[%clk 0:00:20]}  Kf3 {[%clk 0:00:22]} 66. Kxh6 {[%clk 0:00:20]}  Kxf2 {[%clk 0:00:21]} 67. g4 {[%clk 0:00:20]} 1-0

[Event "December 19 Early 2023"]
[Site "https://www.chess.com"]
[Date "2023.12.19"]
[Round "7"]
[White "Joel Paul Ganta"]
[Black "Caceres Benitez, Arturo Eduardo"]
[Result "1-0"]
[Board "138"]
[TimeControl "180+1"]
[WhiteFideId "35066145"]
[BlackFideId "3710769"]
[WhiteElo "1891"]
[BlackElo "2045"]
[WhiteTeam "IND"]
[BlackTeam "PAR"]
[WhiteClock "0:01:50"]
[BlackClock "0:00:54"]

1. d4 {[%clk 0:03:00]}  g6 {[%clk 0:02:48]} 2. e4 {[%clk 0:02:57]}  Bg7 {[%clk 0:02:49]} 3. Nc3 {[%clk 0:02:55]}  d6 {[%clk 0:02:50]} 4. Nf3 {[%clk 0:02:49]}  Nd7 {[%clk 0:02:51]} 5. Bc4 {[%clk 0:02:45]}  e5 {[%clk 0:02:52]} 6. Bxf7+ {[%clk 0:02:37]}  Kxf7 {[%clk 0:02:27]} 7. Ng5+ {[%clk 0:02:37]}  Ke7 {[%clk 0:02:26]} 8. Nd5+ {[%clk 0:02:31]}  Ke8 {[%clk 0:02:26]} 9. Ne6 {[%clk 0:02:26]}  Bf6 {[%clk 0:02:26]} 10. Nxd8 {[%clk 0:02:19]}  Bxd8 {[%clk 0:02:27]} 11. O-O {[%clk 0:02:11]}  c6 {[%clk 0:02:21]} 12. Nc3 {[%clk 0:02:10]}  Ngf6 {[%clk 0:02:18]} 13. dxe5 {[%clk 0:02:10]}  dxe5 {[%clk 0:02:05]} 14. f4 {[%clk 0:02:10]}  Bc7 {[%clk 0:02:05]} 15. f5 {[%clk 0:02:07]}  gxf5 {[%clk 0:01:43]} 16. Rxf5 {[%clk 0:01:59]}  Rf8 {[%clk 0:01:34]} 17. Bg5 {[%clk 0:01:53]}  Bb6+ {[%clk 0:00:59]} 18. Kh1 {[%clk 0:01:52]}  Ng8 {[%clk 0:00:54]} 19. Qh5+ {[%clk 0:01:50]} 1-0

[Event "December 19 Early 2023"]
[Site "https://www.chess.com"]
[Date "2023.12.19"]
[Round "7"]
[White "Czerw, Dawid"]
[Black "Tarasova, Viktoriya"]
[Result "1-0"]
[Board "139"]
[TimeControl "180+1"]
[WhiteFideId "1145746"]
[BlackFideId "4175840"]
[WhiteElo "2144"]
[BlackElo "2182"]
[WhiteTeam "POL"]
[BlackTeam "RUS"]
[WhiteClock "0:00:07"]
[BlackClock "0:00:06"]

1. e4 {[%clk 0:03:00]}  e5 {[%clk 0:02:58]} 2. Nf3 {[%clk 0:03:01]}  Nc6 {[%clk 0:02:58]} 3. Bb5 {[%clk 0:03:01]}  Nf6 {[%clk 0:02:57]} 4. d3 {[%clk 0:03:01]}  Bc5 {[%clk 0:02:57]} 5. O-O {[%clk 0:03:00]}  Nd4 {[%clk 0:02:56]} 6. Nxd4 {[%clk 0:03:00]}  Bxd4 {[%clk 0:02:57]} 7. Ba4 {[%clk 0:03:00]}  Bb6 {[%clk 0:02:55]} 8. c3 {[%clk 0:03:00]}  O-O {[%clk 0:02:52]} 9. Nd2 {[%clk 0:03:00]}  c6 {[%clk 0:02:51]} 10. Nf3 {[%clk 0:03:00]}  d6 {[%clk 0:02:49]} 11. Bg5 {[%clk 0:03:00]}  h6 {[%clk 0:02:49]} 12. Bh4 {[%clk 0:03:00]}  Bg4 {[%clk 0:02:48]} 13. h3 {[%clk 0:02:57]}  Bh5 {[%clk 0:02:49]} 14. g4 {[%clk 0:02:53]}  Bg6 {[%clk 0:02:48]} 15. Bc2 {[%clk 0:02:52]}  Qe7 {[%clk 0:02:43]} 16. Kh2 {[%clk 0:02:44]}  Qe6 {[%clk 0:02:36]} 17. Qe2 {[%clk 0:02:41]}  Rfe8 {[%clk 0:02:32]} 18. Nd2 {[%clk 0:02:28]}  d5 {[%clk 0:02:24]} 19. f3 {[%clk 0:02:20]}  Rad8 {[%clk 0:02:12]} 20. Rfe1 {[%clk 0:02:18]}  Rd7 {[%clk 0:02:11]} 21. Nf1 {[%clk 0:02:18]}  Nh7 {[%clk 0:02:05]} 22. Bf2 {[%clk 0:02:14]}  Bxf2 {[%clk 0:02:03]} 23. Qxf2 {[%clk 0:02:15]}  dxe4 {[%clk 0:02:00]} 24. dxe4 {[%clk 0:02:14]}  b6 {[%clk 0:01:55]} 25. Bb3 {[%clk 0:02:12]}  Qe7 {[%clk 0:01:54]} 26. Ne3 {[%clk 0:02:02]}  Red8 {[%clk 0:01:54]} 27. Rad1 {[%clk 0:02:01]}  Ng5 {[%clk 0:01:51]} 28. Rxd7 {[%clk 0:01:52]}  Rxd7 {[%clk 0:01:51]} 29. Rd1 {[%clk 0:01:51]}  Rxd1 {[%clk 0:01:48]} 30. Nxd1 {[%clk 0:01:51]}  Kf8 {[%clk 0:01:40]} 31. Ne3 {[%clk 0:01:43]}  Qd7 {[%clk 0:01:26]} 32. h4 {[%clk 0:01:28]}  Ne6 {[%clk 0:01:21]} 33. Bxe6 {[%clk 0:01:27]}  Qxe6 {[%clk 0:01:19]} 34. Qd2 {[%clk 0:01:20]}  Ke8 {[%clk 0:01:14]} 35. b3 {[%clk 0:01:16]}  Qd7 {[%clk 0:01:12]} 36. Qxd7+ {[%clk 0:01:06]}  Kxd7 {[%clk 0:01:11]} 37. Kg2 {[%clk 0:01:06]}  f6 {[%clk 0:01:08]} 38. Kf2 {[%clk 0:01:06]}  Kd6 {[%clk 0:01:08]} 39. Ke2 {[%clk 0:01:05]}  a5 {[%clk 0:01:04]} 40. Kd3 {[%clk 0:01:02]}  Kd7 {[%clk 0:01:05]} 41. a4 {[%clk 0:00:57]}  Ke6 {[%clk 0:00:58]} 42. Nc4 {[%clk 0:00:48]}  b5 {[%clk 0:00:47]} 43. Nxa5 {[%clk 0:00:46]}  Kd7 {[%clk 0:00:42]} 44. Nb7 {[%clk 0:00:38]}  Bf7 {[%clk 0:00:42]} 45. a5 {[%clk 0:00:30]}  Kc7 {[%clk 0:00:40]} 46. Nc5 {[%clk 0:00:28]}  Kb8 {[%clk 0:00:35]} 47. b4 {[%clk 0:00:13]}  Bc4+ {[%clk 0:00:35]} 48. Ke3 {[%clk 0:00:13]}  Kc7 {[%clk 0:00:34]} 49. f4 {[%clk 0:00:11]}  exf4+ {[%clk 0:00:32]} 50. Kxf4 {[%clk 0:00:11]}  g6 {[%clk 0:00:21]} 51. e5 {[%clk 0:00:10]}  g5+ {[%clk 0:00:20]} 52. hxg5 {[%clk 0:00:10]}  hxg5+ {[%clk 0:00:18]} 53. Kf5 {[%clk 0:00:10]}  fxe5 {[%clk 0:00:19]} 54. Kxg5 {[%clk 0:00:09]}  Bd5 {[%clk 0:00:13]} 55. Kf5 {[%clk 0:00:08]}  Kd6 {[%clk 0:00:12]} 56. a6 {[%clk 0:00:08]}  e4 {[%clk 0:00:06]} 57. a7 {[%clk 0:00:07]} 1-0